lending/lending_fUSD_20260211
["ID","MTS","AMOUNT","RATE_DAILY","PERIOD"]
[405109502,1770837239973,650.0,0.00035616,120]
[405109504,1770837318338,166.0,0.00035616,120]
[405109505,1770837318895,166.0,0.00035616,120]
[405109506,1770837319465,166.0,0.00035616,120]
[405109507,1770837320130,166.0,0.00035616,120]
[405109508,1770837324525,166.0,0.00035616,120]
[405109509,1770837326893,166.0,0.00035616,120]
[405109510,1770837327407,166.0,0.00035616,120]
[405109511,1770837332030,166.0,0.00035616,120]
[405109512,1770837334899,167.6327206,0.00035616,120]
[405109515,1770837362796,18254.61,0.00035616,120]
[405109518,1770837405650,194.69580409,0.000354,120]
[405109529,1770837505986,163.58904383,0.00035589,120]
[405109530,1770837516767,150.0,0.00035616,120]
[405109536,1770837721595,194.69580409,0.000354,120]
[405109537,1770837723925,20000.0,0.00035616,120]
[405109540,1770837850205,10000.0,0.00035616,120]
[405109541,1770837904997,300.0,0.00035616,120]
[405109542,1770837915426,300.0,0.00035616,120]
[405109543,1770837933778,315.7100887,0.0003561,120]
[405109544,1770837941833,300.0,0.00035616,120]
[405109545,1770837950155,300.0,0.00035616,120]
[405109546,1770837974285,300.0,0.00035616,120]
[405109547,1770837983028,300.0,0.00035616,120]
[405109548,1770838002641,300.0,0.00035616,120]
[405109549,1770838011414,300.0,0.00035616,120]
[405109555,1770838034961,194.69580409,0.000354,120]
[405109558,1770838055310,300.0,0.00035616,120]
[405109559,1770838063746,300.0,0.00035616,120]
[405109560,1770838083932,10000.0,0.00035616,120]
[405109561,1770838088409,300.0,0.00035616,120]
[405109562,1770838109364,300.0,0.00035616,120]
[405109564,1770838114516,6269.47719653,0.00035616,120]
[405109565,1770838124349,1000.0,0.00035616,120]
[405109566,1770838133098,300.0,0.00035616,120]
[405109602,1770838157188,300.0,0.00035616,120]
[405109610,1770838178961,300.0,0.00035616,120]
[405109611,1770838187279,300.0,0.00035616,120]
[405109617,1770838209323,300.0,0.00035616,120]
[405109620,1770838227924,300.0,0.00035616,120]
[405109631,1770838232162,-166.66,0.00012675,2]
[405109633,1770838232172,-254.0,0.00012675,2]
[405109635,1770838232182,-166.66,0.00013008,2]
[405109637,1770838232192,-166.66,0.00013342,2]
[405109639,1770838232202,-1109.09838408,0.00013461,2]
[405109640,1770838232282,-523.88161592,0.00013461,2]
[405109641,1770838232291,-39.17479646,0.00013675,2]
[405109642,1770838232327,-127.48520354,0.00013675,2]
[405109643,1770838232336,-2531.986,0.00013719,2]
[405109644,1770838232346,-78.90753365,0.00013719,2]
[405109645,1770838232357,-88.52146635,0.00013719,2]
[405109646,1770838232367,-1200.0,0.00013826,2]
[405109647,1770838232377,-150.0,0.00013827,2]
[405109649,1770838232387,-1762.48710278,0.00013842,2]
[405109651,1770838232396,-214.21865514,0.00013842,2]
[405109653,1770838232408,-300.0,0.0001387,2]
[405109655,1770838232418,-32.47277573,0.00013871,2]
[405109675,1770838237841,300.0,0.00035616,120]
[405109678,1770838238265,-267.52722427,0.00013871,2]
[405109679,1770838238275,-196.0,0.00013871,2]
[405109680,1770838238285,-1910.00191232,0.00013872,2]
[405109681,1770838238295,-174.02517863,0.00013872,2]
[405109682,1770838238304,-200.0,0.00013881,2]
[405109683,1770838238314,-5528.0,0.0001389,2]
[405109684,1770838238323,-15097.98595219,0.00013899,2]
[405109685,1770838238371,-1243.632035,0.00013899,2]
[405109686,1770838238384,-21676.86041281,0.00013899,2]
[405109687,1770838238395,-150.29839688,0.000139,2]
[405109688,1770838238405,-150.0,0.00013906,2]
[405109689,1770838238416,-163.58036533,0.00013907,2]
[405109690,1770838238426,-500.0,0.00013907,2]
[405109691,1770838238436,-500.0,0.00013907,2]
[405109692,1770838238446,-500.0,0.00013907,2]
[405109693,1770838238456,-500.0,0.00013907,2]
[405109694,1770838238466,-500.0,0.00013907,2]
[405109695,1770838238476,-500.0,0.00013907,2]
[405109696,1770838238486,-500.0,0.00013907,2]
[405109697,1770838238496,-500.0,0.00013907,2]
[405109698,1770838238505,-500.0,0.00013907,2]
[405109699,1770838238515,-500.0,0.00013907,2]
[405109700,1770838238525,-500.0,0.00013907,2]
[405109701,1770838238535,-500.0,0.00013907,2]
[405109702,1770838238545,-500.0,0.00013907,2]
[405109703,1770838238555,-500.0,0.00013907,2]
[405109704,1770838238566,-500.0,0.00013907,2]
[405109705,1770838238576,-297.54938228,0.00013907,2]
[405109706,1770838238586,-500.0,0.00013907,2]
[405109707,1770838238597,-500.0,0.00013907,2]
[405109708,1770838238608,-500.0,0.00013907,2]
[405109709,1770838238618,-161.31250905,0.00013907,2]
[405109710,1770838238628,-500.0,0.00013907,2]
[405109711,1770838238640,-409.47919692,0.00013907,2]
[405109712,1770838238650,-254.29582517,0.00013907,2]
[405109713,1770838238664,-271.26099333,0.00013907,2]
[405109714,1770838238673,-321880.54114642,0.00013908,2]
[405109715,1770838238690,-13380.60546218,0.00013908,2]
[405109744,1770838240294,-3164738.8533914,0.00013908,2]
[405109745,1770838240303,-500.0,0.00013942,2]
[405109746,1770838240314,-250.0,0.00013942,2]
[405109747,1770838240323,-776.5478061,0.00013942,2]
[405109748,1770838240333,-353.83408348,0.00013942,2]
[405109749,1770838240342,-500.0,0.00013991,2]
[405109750,1770838240352,-500.0,0.00013991,2]
[405109751,1770838240361,-500.0,0.00013991,2]
[405109752,1770838240371,-561.50404512,0.00013991,2]
[405109753,1770838240380,-500.0,0.00013991,2]
[405109754,1770838240389,-500.0,0.00013991,2]
[405109755,1770838240399,-200.0,0.00013991,2]
[405109756,1770838240409,-500.0,0.00013991,2]
[405109757,1770838240418,-200.0,0.00013991,2]
[405109758,1770838240428,-500.0,0.00013991,2]
[405109759,1770838240438,-2500.0,0.00014,2]
[405109760,1770838240448,-174.22051898,0.00014008,2]
[405109761,1770838240458,-174.22051898,0.00014008,2]
[405109762,1770838240469,-166.66,0.00014009,2]
[405109763,1770838240480,-294.18,0.00014092,2]
[405109764,1770838240490,-500.0,0.00014099,2]
[405109765,1770838240499,-4642.3711,0.00014171,2]
[405109766,1770838240508,-500.0,0.00014216,2]
[405109767,1770838240518,-1000.0,0.00014348,2]
[405109768,1770838240528,-294.18,0.00014365,2]
[405109769,1770838240537,-1910.00191225,0.00014447,2]
[405109770,1770838240547,-500.0,0.0001449,2]
[405109771,1770838240557,-200.0,0.00014576,2]
[405109772,1770838240566,-570.46,0.00014618,2]
[405109773,1770838240576,-157.5,0.00014632,2]
[405109774,1770838240586,-1202.11,0.00014639,2]
[405109775,1770838240596,-294.18,0.00014639,2]
[405109776,1770838240606,-1000.0,0.00014646,2]
[405109777,1770838240616,-294.18,0.00014913,2]
[405109778,1770838240625,-5023.73912802,0.00014934,2]
[405109779,1770838240634,-26284.5566762,0.00014934,2]
[405109780,1770838240645,-26284.5566762,0.00014934,2]
[405109781,1770838240657,-8679.04347404,0.00014934,2]
[405109782,1770838240667,-40920.69473654,0.00014934,2]
[405109783,1770838240677,-7460.60869204,0.00014934,2]
[405109784,1770838240688,-8679.04347404,0.00014934,2]
[405109785,1770838240698,-255.0,0.00015018,2]
[405109786,1770838240708,-1910.00191225,0.00015023,2]
[405109787,1770838240718,-500.0,0.00015183,2]
[405109788,1770838240729,-500.0,0.00015183,2]
[405109789,1770838240739,-500.0,0.00015183,2]
[405109790,1770838240749,-500.0,0.00015183,2]
[405109791,1770838240760,-500.0,0.00015183,2]
[405109792,1770838240770,-150.0,0.00015183,2]
[405109793,1770838240780,-500.0,0.00015183,2]
[405109794,1770838240790,-500.0,0.00015183,2]
[405109795,1770838240800,-294.22,0.00015187,2]
[405109796,1770838240810,-300.0,0.00015197,2]
[405109797,1770838240820,-481.0,0.00015209,2]
[405109798,1770838240835,-174.02517861,0.00015215,2]
[405109799,1770838240846,-500.0,0.00015238,2]
[405109800,1770838240856,-504.50097827,0.00015238,2]
[405109801,1770838240867,-500.0,0.00015238,2]
[405109802,1770838240877,-500.0,0.00015238,2]
[405109803,1770838240887,-500.0,0.00015238,2]
[405109804,1770838240898,-150.0,0.00015238,2]
[405109805,1770838240910,-202.45952396,0.00015238,2]
[405109806,1770838240920,-500.0,0.00015238,2]
[405109807,1770838240930,-500.0,0.00015238,2]
[405109808,1770838240940,-331.0,0.00015273,2]
[405109809,1770838240951,-500.0,0.00015293,2]
[405109810,1770838240961,-500.0,0.00015293,2]
[405109811,1770838240972,-500.0,0.00015293,2]
[405109812,1770838240982,-150.0,0.00015293,2]
[405109813,1770838240993,-500.0,0.00015293,2]
[405109814,1770838241003,-500.0,0.00015293,2]
[405109815,1770838241013,-250.0,0.00015336,2]
[405109816,1770838241022,-500.0,0.00015347,2]
[405109817,1770838241032,-500.0,0.00015347,2]
[405109818,1770838241042,-500.0,0.00015347,2]
[405109819,1770838241052,-500.0,0.00015347,2]
[405109820,1770838241061,-500.0,0.00015347,2]
[405109821,1770838241071,-500.0,0.00015402,2]
[405109822,1770838241083,-500.0,0.00015402,2]
[405109823,1770838241093,-500.0,0.00015402,2]
[405109824,1770838241103,-500.0,0.00015402,2]
[405109825,1770838241112,-500.0,0.00015402,2]
[405109826,1770838241122,-444.0,0.00015407,2]
[405109827,1770838241132,-275.2905308,0.00015457,2]
[405109828,1770838241141,-500.0,0.00015457,2]
[405109829,1770838241151,-271.54143877,0.00015457,2]
[405109830,1770838241162,-500.0,0.00015457,2]
[405109831,1770838241171,-500.0,0.00015457,2]
[405109832,1770838241180,-150.0,0.00015464,2]
[405109833,1770838241190,-150.0,0.00015464,2]
[405109834,1770838241200,-500.0,0.00015512,2]
[405109835,1770838241210,-500.0,0.00015512,2]
[405109836,1770838241220,-150.0,0.00015519,2]
[405109837,1770838241230,-150.0,0.00015519,2]
[405109838,1770838241240,-250.0,0.00015567,2]
[405109839,1770838241249,-400.0,0.00015567,2]
[405109840,1770838241258,-150.0,0.00015574,2]
[405109841,1770838241267,-200.0,0.00015574,2]
[405109842,1770838241277,-411.55774058,0.00015586,2]
[405109843,1770838241286,-1910.00191225,0.00015598,2]
[405109844,1770838241296,-269.56193534,0.00015628,2]
[405109845,1770838241305,-1762.48710277,0.00015899,2]
[405109846,1770838241315,-214.21865514,0.00016053,2]
[405109847,1770838241324,-199.0,0.00016091,2]
[405109848,1770838241334,-1346.65,0.00016112,2]
[405109849,1770838241343,-150.0,0.00016136,2]
[405109850,1770838241353,-1910.00191225,0.00016174,2]
[405109851,1770838241362,-266.0,0.00016187,2]
[405109852,1770838241371,-1000.0,0.00016322,2]
[405109853,1770838241381,-6204.0,0.00016409,2]
[405109854,1770838241390,-174.02517861,0.00016557,2]
[405109855,1770838241400,-250.0,0.00016748,2]
[405109856,1770838241411,-1910.00191225,0.00016749,2]
[405109857,1770838241420,-177.0,0.00016967,2]
[405109858,1770838241429,-687.42073633,0.00017,3]
[405109859,1770838241439,-987.0,0.00017,2]
[405109860,1770838241448,-861.0,0.00017,2]
[405109861,1770838241458,-3258.17375348,0.00017011,2]
[405109862,1770838241468,-1337.0,0.00017061,2]
[405109863,1770838241477,-157.5,0.00017071,2]
[405109864,1770838241486,-155.34959577,0.00017071,2]
[405109865,1770838241496,-350.0,0.000171,2]
[405109866,1770838241506,-160.0,0.00017221,2]
[405109867,1770838241515,-1000.0,0.0001726,2]
[405109868,1770838241525,-350.0,0.00017311,2]
[405109869,1770838241535,-1910.00191225,0.00017325,2]
[405109870,1770838241544,-164.0,0.0001736,2]
[405109871,1770838241554,-350.0,0.00017392,2]
[405109872,1770838241563,-350.0,0.00017424,2]
[405109873,1770838241573,-3258.17375348,0.00017456,2]
[405109874,1770838241582,-1273.0,0.00017474,2]
[405109875,1770838241592,-150.0,0.00017474,2]
[405109876,1770838241602,-1207.0,0.00017474,2]
[405109877,1770838241611,-918.0,0.00017474,2]
[405109878,1770838241621,-3487.0,0.00017474,2]
[405109879,1770838241630,-2449.0,0.00017474,2]
[405109880,1770838241639,-1000.0,0.00017534,2]
[405109881,1770838241649,-3369.58709861,0.0001764,2]
[405109882,1770838241658,-150.0,0.00017805,2]
[405109883,1770838241667,-736.3483384,0.00017808,2]
[405109884,1770838241677,-736.3483384,0.00017808,2]
[405109885,1770838241687,-736.3483384,0.00017808,2]
[405109886,1770838241697,-736.3483384,0.00017808,2]
[405109887,1770838241706,-736.3483384,0.00017808,2]
[405109888,1770838241715,-736.3483384,0.00017808,2]
[405109889,1770838241724,-736.3483384,0.00017808,2]
[405109890,1770838241734,-736.3483384,0.00017808,2]
[405109891,1770838241743,-736.3483384,0.00017808,2]
[405109892,1770838241754,-736.3483384,0.00017808,2]
[405109893,1770838241764,-736.3483384,0.00017808,2]
[405109894,1770838241773,-736.3483384,0.00017808,2]
[405109895,1770838241783,-736.3483384,0.00017808,2]
[405109896,1770838241792,-736.3483384,0.00017808,2]
[405109897,1770838241801,-736.3483384,0.00017808,2]
[405109898,1770838241811,-736.3483384,0.00017808,2]
[405109899,1770838241820,-736.3483384,0.00017808,2]
[405109900,1770838241834,-736.3483384,0.00017808,2]
[405109901,1770838241843,-736.3483384,0.00017808,2]
[405109902,1770838241855,-736.34833842,0.00017808,2]
[405109903,1770838241865,-736.34833842,0.00017808,2]
[405109904,1770838241874,-736.34833842,0.00017808,2]
[405109905,1770838241884,-736.34833842,0.00017808,2]
[405109906,1770838241893,-736.34833842,0.00017808,2]
[405109907,1770838241906,-736.34833842,0.00017808,2]
[405109908,1770838241917,-736.34833842,0.00017808,2]
[405109909,1770838241927,-736.34833842,0.00017808,2]
[405109910,1770838241937,-500.0,0.00017808,2]
[405109911,1770838241947,-1000.0,0.00017808,2]
[405109912,1770838241956,-2000.0,0.0001782,2]
[405109913,1770838241966,-2000.0,0.0001782,2]
[405109914,1770838241975,-100476.39903326,0.0001783,2]
[405109915,1770838241986,-200.0,0.00017856,2]
[405109916,1770838241995,-500.0,0.00017863,2]
[405109917,1770838242004,-150.0,0.00017899,2]
[405109918,1770838242014,-3258.17375348,0.000179,2]
[405109919,1770838242024,-1910.00191225,0.000179,2]
[405109920,1770838242034,-174.02517861,0.000179,2]
[405109921,1770838242043,-500.0,0.000179,2]
[405109922,1770838242053,-500.0,0.000179,2]
[405109923,1770838242062,-150.0,0.00017916,2]
[405109924,1770838242071,-500.0,0.00017918,2]
[405109925,1770838242081,-150.0,0.0001795,2]
[405109926,1770838242090,-1762.48710277,0.00017955,2]
[405109927,1770838242099,-400.0,0.00017972,2]
[405109928,1770838242109,-150.0,0.00017985,2]
[405109929,1770838242118,-150.0,0.00017991,2]
[405109930,1770838242127,-350.0,0.00017997,2]
[405109931,1770838242137,-502.90864516,0.00017998,2]
[405109932,1770838242146,-403.12239896,0.00017998,2]
[405109933,1770838242157,-2779.82844146,0.00017999,2]
[405109934,1770838242166,-100515.4528012,0.00017999,2]
[405109935,1770838242176,-335.5000001,0.00017999,2]
[405109936,1770838242185,-300.0,0.00017999,2]
[405109937,1770838242195,-300.0,0.00017999,2]
[405109938,1770838242204,-269418.15347632,0.00018,2]
[405109939,1770838242215,-616892.58631854,0.00018,2]
[405109940,1770838242904,-319522.10009352,0.00018,2]
[405109941,1770838242938,-5626.63267633,0.00018,2]
[405109942,1770838243055,-430.1625264,0.00018,2]
[405109946,1770838244857,-1145.538314,0.00018,2]
[405109947,1770838246184,-92917.74662257,0.00018,2]
[405109948,1770838246193,-1378917.65464019,0.00018,2]
[405109949,1770838246449,-12723.70647297,0.00018,2]
[405109958,1770838246793,300.0,0.00035616,120]
[405109959,1770838255393,300.0,0.00035616,120]
[405109961,1770838277588,300.0,0.00035616,120]
[405109962,1770838307989,300.0,0.00035616,120]
[405109963,1770838319502,300.0,0.00035616,120]
[405109964,1770838346494,300.0,0.00035616,120]
[405109965,1770838347874,194.69580409,0.000354,120]
[405109966,1770838385174,300.0,0.00035616,120]
[405109969,1770838396512,20000.0,0.00035616,120]
[405109970,1770838400344,150.0,0.00035616,120]
[405109971,1770838406124,300.0,0.00035616,120]
[405109972,1770838414819,20000.0,0.00035616,120]
[405109973,1770838428027,5000.0,0.00035616,120]
[405109974,1770838439686,300.0,0.00035616,120]
[405109976,1770838461553,300.0,0.00035616,120]
[405109977,1770838493073,300.0,0.00035616,120]
[405109981,1770838540614,300.0,0.00035616,120]
[405109983,1770838567775,300.0,0.00035616,120]
[405109986,1770838593888,300.0,0.00035616,120]
[405109987,1770838619809,300.0,0.00035616,120]
[405109988,1770838660709,194.69580409,0.000354,120]
[405109989,1770838690794,300.0,0.00035616,120]
[405109990,1770838736534,300.0,0.00035616,120]
[405109991,1770838771191,300.0,0.00035616,120]
[405109992,1770838805093,300.0,0.00035616,120]
[405109993,1770838812078,1000.0,0.00035616,120]
[405109994,1770838814801,300.0,0.00035616,120]
[405109996,1770838894445,166.83,0.00012298,2]
[405109997,1770838988288,169.10662078,0.00028973,120]
[405109999,1770839063422,157.81,9.525e-05,2]
[405110000,1770839063647,157.81,9.781e-05,2]
[405110001,1770839064480,157.81,0.00010036,2]
[405110002,1770839064631,157.81,0.00010291,2]
[405110003,1770839064777,157.81,0.00010546,2]
[405110004,1770839064868,157.81,0.00010801,2]
[405110005,1770839064959,157.81,0.00011056,2]
[405110006,1770839065191,157.81,0.00011311,2]
[405110007,1770839065405,157.81,0.00011567,2]
[405110008,1770839065791,157.81,0.00011822,2]
[405110009,1770839065846,157.81,0.00012077,2]
[405110010,1770839066122,157.81,0.00012332,2]
[405110023,1770839297523,237.27535965,0.00035616,120]
[405110032,1770839403165,2570.61,0.00027397,120]
[405110036,1770839431360,-253.0,0.00012587,2]
[405110037,1770839431370,-157.81,0.00012587,2]
[405110038,1770839431379,-157.81,0.00012842,2]
[405110039,1770839431388,-157.81,0.00013098,2]
[405110040,1770839431397,-481.0,0.00013299,2]
[405110041,1770839431406,-865.8299778,0.000133,2]
[405110042,1770839431417,-2224.66186752,0.000133,2]
[405110043,1770839431440,-542.62433888,0.000133,2]
[405110044,1770839431485,-354.79506652,0.000133,2]
[405110045,1770839431523,-722.00335408,0.000133,2]
[405110046,1770839431532,-889.81174195,0.000133,2]
[405110047,1770839431577,-523.0,0.000133,2]
[405110057,1770839437430,-3093.74999977,0.000133,2]
[405110058,1770839437484,-1695.30567479,0.000133,2]
[405110059,1770839437496,-296.53689903,0.000133,2]
[405110060,1770839437588,-424.06072804,0.000133,2]
[405110061,1770839437600,-7467.6094945,0.000133,2]
[405110154,1770839439434,-497.813004,0.000133,2]
[405110155,1770839439461,-12952.0,0.000133,2]
[405110156,1770839439644,-512.27802841,0.000133,2]
[405110157,1770839439698,-2183.52560609,0.000133,2]
[405110158,1770839439711,-1739.2125644,0.000133,2]
[405110159,1770839439753,-6015.6993268,0.000133,2]
[405110161,1770839439762,-6989.8719072,0.000133,2]
[405110163,1770839439771,-8129.8505584,0.000133,2]
[405110164,1770839439780,-38290.60306778,0.000133,2]
[405110165,1770839439789,-8129.8505584,0.000133,2]
[405110166,1770839439798,-256.43567797,0.00013316,2]
[405110167,1770839439807,-157.81,0.00013353,2]
[405110168,1770839439816,-2025.589,0.00013416,2]
[405110169,1770839439825,-167.429,0.00013416,2]
[405110170,1770839439834,-1427.35855261,0.00013475,2]
[405110171,1770839439843,-1028.35610723,0.00013475,2]
[405110173,1770839439852,-3273.67028156,0.00013475,2]
[405110174,1770839439861,-41367.12781118,0.0001348,2]
[405110175,1770839439900,-20791.0449003,0.0001348,2]
[405110176,1770839439908,-150.0,0.00013489,2]
[405110177,1770839439917,-300.0,0.00013489,2]
[405110178,1770839439926,-1324654.14490253,0.0001349,2]
[405110179,1770839439936,-1169.5132345,0.0001349,2]
[405110188,1770839445347,-215.28142592,0.00013489,2]
[405110189,1770839445357,-463.01857408,0.0001349,2]
[405110190,1770839445368,-304.5,0.0001349,2]
[405110191,1770839445379,-747422.00338572,0.0001349,2]
[405110195,1770839445607,-3479.00000066,0.0001349,2]
[405110197,1770839675896,173.12,0.00030411,120]
[405110200,1770839881941,2000.0,0.0003561,120]
[405110201,1770839997692,1000.0,0.00035616,120]
[405110206,1770840278080,160.45,0.000134,5]
[405110207,1770840306555,185.0,0.00034128,120]
[405110216,1770840579198,473.05096586,0.00035616,120]
[405110225,1770840631710,-2354.96308394,0.000129,2]
[405110226,1770840631761,-345.11572277,0.000129,2]
[405110227,1770840631816,-246.22444664,0.000129,2]
[405110228,1770840631827,-685.57073814,0.000129,2]
[405110229,1770840631837,-215.2814259,0.000129,2]
[405110230,1770840631848,-256.0,0.000129,2]
[405110231,1770840631859,-1386.51884811,0.000129,2]
[405110232,1770840631870,-150.0,0.00012999,2]
[405110233,1770840631880,-300.0,0.00012999,2]
[405110234,1770840631890,-182.42048184,0.00012999,2]
[405110235,1770840631911,-317.57951816,0.00012999,2]
[405110236,1770840631922,-36.31498184,0.00012999,2]
[405110237,1770840631947,-463.68501816,0.00012999,2]
[405110238,1770840631957,-500.0,0.00012999,2]
[405110239,1770840631969,-153.94034958,0.00012999,2]
[405110240,1770840631979,-500.0,0.00012999,2]
[405110241,1770840631989,-500.0,0.00012999,2]
[405110242,1770840631999,-124.5425117,0.00012999,2]
[405110243,1770840632011,-265.0,0.00012999,2]
[405110244,1770840632043,-110.4574883,0.00012999,2]
[405110245,1770840632054,-221.42131388,0.00012999,2]
[405110246,1770840632064,-499.99999999,0.00012999,2]
[405110247,1770840632075,-636.63543785,0.00012999,2]
[405110248,1770840632085,-277.824,0.00013,2]
[405110250,1770840632095,-3164.9129,0.00013,2]
[405110252,1770840632105,-187.06,0.00013,2]
[405110254,1770840632115,-4553.69608464,0.00013,2]
[405110275,1770840637930,-545.33021536,0.00013,2]
[405110277,1770840637940,-187.11978464,0.00013,2]
[405110284,1770840638005,-2380.82853582,0.00013,2]
[405110286,1770840638014,-4381.40956081,0.00013,2]
[405110289,1770840638025,-26156.05074692,0.00013,2]
[405110291,1770840638034,-3776.92248069,0.00013,2]
[405110293,1770840638044,-4381.40956081,0.00013,2]
[405110295,1770840638054,-33323.5159,0.00013,2]
[405110296,1770840638063,-179165.35531074,0.00013,2]
[405110369,1770840639613,-736.22844294,0.00013,2]
[405110370,1770840639626,-3320098.41624632,0.00013,2]
[405110371,1770840639637,-2500.0,0.00013,2]
[405110372,1770840639647,-500.0,0.00013099,2]
[405110373,1770840639657,-174.22051898,0.00013099,2]
[405110374,1770840639666,-174.22051898,0.00013099,2]
[405110375,1770840639676,-1000.0,0.00013099,2]
[405110376,1770840639686,-779.82844146,0.00013199,2]
[405110377,1770840639697,-1000.0,0.00013199,2]
[405110378,1770840639707,-500.0,0.00013199,2]
[405110379,1770840639717,-337.66241168,0.00013199,2]
[405110380,1770840639729,-1620.471,0.00013199,2]
[405110381,1770840639738,-167.429,0.00013199,2]
[405110382,1770840639748,-570.46,0.00013287,2]
[405110383,1770840639759,-157.5,0.00013344,2]
[405110384,1770840639770,-100476.39903326,0.0001336,2]
[405110385,1770840639781,-500.0,0.00013382,2]
[405110386,1770840639791,-500.0,0.00013382,2]
[405110387,1770840639801,-500.0,0.00013382,2]
[405110388,1770840639811,-500.0,0.00013382,2]
[405110389,1770840639820,-500.0,0.00013382,2]
[405110390,1770840639830,-500.0,0.00013382,2]
[405110391,1770840639839,-561.50404512,0.00013382,2]
[405110392,1770840639849,-200.0,0.00013382,2]
[405110393,1770840639859,-500.0,0.00013382,2]
[405110394,1770840639868,-200.0,0.00013382,2]
[405110395,1770840639878,-500.0,0.00013382,2]
[405110396,1770840639888,-2073.26,0.0001339,2]
[405110397,1770840639898,-1000.0,0.0001339,2]
[405110398,1770840639910,-2946.30325333,0.00013456,2]
[405110399,1770840639921,-157.81,0.00013608,2]
[405110400,1770840639933,-500.0,0.00013656,2]
[405110401,1770840639945,-403.12239896,0.00013698,2]
[405110402,1770840639956,-502.90864516,0.00013698,2]
[405110403,1770840639965,-500.0,0.0001393,2]
[405110404,1770840639975,-2946.30325333,0.00014011,2]
[405110406,1770840639985,-255.0,0.00014104,2]
[405110408,1770840639995,-374.64251612,0.0001419,2]
[405110410,1770840640004,-353.83408348,0.0001419,2]
[405110412,1770840640014,-1000.0,0.00014365,2]
[405110414,1770840640023,-2946.30325333,0.00014567,2]
[405110417,1770840640034,-354.0,0.00014815,2]
[405110420,1770840640044,-371.0,0.00014865,2]
[405110423,1770840640053,-350.0,0.00014959,2]
[405110425,1770840640063,-371.0,0.0001501,2]
[405110427,1770840640072,-479.0,0.0001501,2]
[405110429,1770840640082,-394.0,0.0001506,2]
[405110430,1770840640093,-2946.30325333,0.00015122,2]
[405110431,1770840640103,-338.0,0.0001516,2]
[405110432,1770840640114,-395.0,0.0001516,2]
[405110433,1770840640124,-150.0,0.00015183,2]
[405110434,1770840640134,-500.0,0.00015183,2]
[405110435,1770840640143,-500.0,0.00015183,2]
[405110436,1770840640153,-150.0,0.00015183,2]
[405110437,1770840640163,-150.0,0.00015183,2]
[405110438,1770840640174,-500.0,0.00015183,2]
[405110439,1770840640186,-150.0,0.00015183,2]
[405110440,1770840640196,-150.0,0.00015183,2]
[405110441,1770840640207,-500.0,0.00015183,2]
[405110442,1770840640218,-500.0,0.00015183,2]
[405110443,1770840640230,-150.0,0.00015183,2]
[405110444,1770840640242,-500.0,0.00015183,2]
[405110445,1770840640254,-150.0,0.00015183,2]
[405110446,1770840640264,-150.0,0.00015183,2]
[405110447,1770840640274,-500.0,0.00015183,2]
[405110448,1770840640290,-150.0,0.00015183,2]
[405110449,1770840640300,-500.0,0.00015183,2]
[405110450,1770840640311,-150.0,0.00015183,2]
[405110451,1770840640321,-267.0,0.0001521,2]
[405110452,1770840640332,-3240.0,0.00015227,2]
[405110453,1770840640342,-202.45952396,0.00015238,2]